[Event "*** Titled Tuesday Blitz"]
[Site "Chess.com"]
[Date "2021.04.20"]
[Round "9"]
[White "ZAbdumalik"]
[Black "ViktoriyaTarasova"]
[Result "1-0"]
[WhiteElo "2618"]
[BlackElo "2429"]
[TimeControl "180+1"]
[EndTime "11:44:21 PDT"]
[Termination "ZAbdumalik won by resignation"]

1. e4 {[%clk 0:03:00.9]} 1... e5 {[%clk 0:02:59.6]} 2. Nf3 {[%clk 0:03:00.8]}
2... Nc6 {[%clk 0:03:00.2]} 3. Bb5 {[%clk 0:03:01.5]} 3... Nf6 {[%clk
0:03:00.5]} 4. d3 {[%clk 0:03:01]} 4... Bc5 {[%clk 0:03:00.3]} 5. Nbd2 {[%clk
0:03:01.2]} 5... O-O {[%clk 0:02:59.4]} 6. Nb3 {[%clk 0:03:01.6]} 6... Bb6
{[%clk 0:02:50.2]} 7. Bxc6 {[%clk 0:03:00.9]} 7... bxc6 {[%clk 0:02:30.6]} 8.
Nxe5 {[%clk 0:03:00.5]} 8... d5 {[%clk 0:02:25.7]} 9. O-O {[%clk 0:02:44.8]}
9... dxe4 {[%clk 0:02:17.2]} 10. d4 {[%clk 0:02:45.2]} 10... Qd6 {[%clk
0:01:52.2]} 11. Bf4 {[%clk 0:02:26.2]} 11... Qe6 {[%clk 0:01:39.7]} 12. c4
{[%clk 0:02:23.2]} 12... a6 {[%clk 0:01:36.8]} 13. Re1 {[%clk 0:02:18.4]} 13...
Qf5 {[%clk 0:01:27.1]} 14. Bg3 {[%clk 0:02:16.8]} 14... Nh5 {[%clk 0:01:00.7]}
15. c5 {[%clk 0:02:14.9]} 15... Ba7 {[%clk 0:00:55.9]} 16. Nxc6 {[%clk
0:02:15.2]} 16... Re8 {[%clk 0:00:52.4]} 17. Nxa7 {[%clk 0:02:13.7]} 17... Rxa7
{[%clk 0:00:51.9]} 18. d5 {[%clk 0:02:10.8]} 18... Nxg3 {[%clk 0:00:42.6]} 19.
hxg3 {[%clk 0:02:10.7]} 19... Rd8 {[%clk 0:00:43.3]} 20. Qe2 {[%clk 0:02:04.3]}
20... Rxd5 {[%clk 0:00:41.1]} 21. Qxe4 {[%clk 0:02:04.5]} 21... Qxe4 {[%clk
0:00:40.5]} 22. Rxe4 {[%clk 0:02:04.7]} 22... Be6 {[%clk 0:00:39.6]} 23. Rc1
{[%clk 0:01:59.8]} 23... Rb7 {[%clk 0:00:35.7]} 24. c6 {[%clk 0:01:54.5]} 24...
Rb8 {[%clk 0:00:34.9]} 25. Nc5 {[%clk 0:01:52.4]} 25... Rxb2 {[%clk 0:00:34]}
26. Nxa6 {[%clk 0:01:49.4]} 26... Rdd2 {[%clk 0:00:32.4]} 27. Rf4 {[%clk
0:01:44.5]} 27... Rdc2 {[%clk 0:00:27.1]} 28. Rd1 {[%clk 0:01:42.3]} 28... g5
{[%clk 0:00:24.3]} 29. Rb4 {[%clk 0:01:40.2]} 29... Rxa2 {[%clk 0:00:21.8]} 30.
Nxc7 {[%clk 0:01:27.5]} 30... Rxc6 {[%clk 0:00:21.7]} 31. Ne8 {[%clk 0:01:27.6]}
31... Rc8 {[%clk 0:00:19.2]} 32. Nf6+ {[%clk 0:01:26]} 32... Kg7 {[%clk
0:00:19.1]} 33. Ne4 {[%clk 0:01:26.3]} 33... h6 {[%clk 0:00:17.9]} 34. Rb7
{[%clk 0:01:24.1]} 34... Rac2 {[%clk 0:00:17.3]} 35. Nd6 {[%clk 0:01:23.4]}
35... Rc1 {[%clk 0:00:15.5]} 36. Rxc1 {[%clk 0:01:21.4]} 36... Rxc1+ {[%clk
0:00:15.2]} 37. Kh2 {[%clk 0:01:22.3]} 37... Rd1 {[%clk 0:00:14.8]} 38. Rb6
{[%clk 0:01:14.1]} 38... Rd2 {[%clk 0:00:14]} 39. f3 {[%clk 0:01:14.5]} 39...
Rd1 {[%clk 0:00:13]} 40. g4 {[%clk 0:01:14.6]} 40... Rd2 {[%clk 0:00:13.1]} 41.
Kg3 {[%clk 0:01:15]} 41... Rd1 {[%clk 0:00:13.7]} 42. Ne4 {[%clk 0:01:15]} 42...
Rd4 {[%clk 0:00:12.6]} 43. Nc5 {[%clk 0:01:12.8]} 43... Ba2 {[%clk 0:00:08.5]}
44. Ra6 {[%clk 0:01:11.4]} 44... Bb1 {[%clk 0:00:05.3]} 45. Ra7 {[%clk
0:01:11.1]} 45... Bg6 {[%clk 0:00:05.7]} 46. Ne6+ {[%clk 0:01:10.6]} 46... Kf6
{[%clk 0:00:06.3]} 47. Nxd4 {[%clk 0:01:11.5]} 47... Ke5 {[%clk 0:00:06.3]} 48.
Nf5 {[%clk 0:01:11.8]} 1-0

[Event "*** Titled Tuesday Blitz"]
[Site "Chess.com"]
[Date "2021.04.20"]
[Round "9"]
[White "MIJuanReyesRosa"]
[Black "Komiagina_Maria"]
[Result "1-0"]
[WhiteElo "2050"]
[BlackElo "2203"]
[TimeControl "180+1"]
[EndTime "11:44:21 PDT"]
[Termination "MIJuanReyesRosa won by resignation"]

1. d4 {[%clk 0:02:59.5]} 1... Nf6 {[%clk 0:02:59.3]} 2. Nf3 {[%clk 0:02:59.3]}
2... g6 {[%clk 0:02:57.8]} 3. c4 {[%clk 0:02:59.3]} 3... Bg7 {[%clk 0:02:57.8]}
4. Nc3 {[%clk 0:02:59.5]} 4... d6 {[%clk 0:02:57.7]} 5. e4 {[%clk 0:02:59.4]}
5... O-O {[%clk 0:02:57.7]} 6. Be2 {[%clk 0:02:59.6]} 6... e5 {[%clk 0:02:57.2]}
7. dxe5 {[%clk 0:02:59.8]} 7... dxe5 {[%clk 0:02:55.9]} 8. Qxd8 {[%clk
0:03:00.6]} 8... Rxd8 {[%clk 0:02:55.5]} 9. Bg5 {[%clk 0:03:01.5]} 9... Re8
{[%clk 0:02:51.1]} 10. Nd5 {[%clk 0:02:59.8]} 10... Nxd5 {[%clk 0:02:47.3]} 11.
cxd5 {[%clk 0:02:59.7]} 11... c6 {[%clk 0:02:46.4]} 12. O-O {[%clk 0:02:59.5]}
12... cxd5 {[%clk 0:02:43]} 13. exd5 {[%clk 0:02:59.3]} 13... e4 {[%clk
0:02:42.4]} 14. Nd2 {[%clk 0:02:59.2]} 14... Bxb2 {[%clk 0:02:40.9]} 15. Rab1
{[%clk 0:02:59.3]} 15... Bg7 {[%clk 0:02:34.2]} 16. Nc4 {[%clk 0:03:00.2]} 16...
Bf8 {[%clk 0:02:20.7]} 17. Rfd1 {[%clk 0:02:47.2]} 17... Nd7 {[%clk 0:02:17.3]}
18. Na5 {[%clk 0:02:08.8]} 18... Rb8 {[%clk 0:01:45.3]} 19. Bb5 {[%clk
0:01:35.5]} 19... Bd6 {[%clk 0:01:20.4]} 20. Bxd7 {[%clk 0:01:28.1]} 20... Bxd7
{[%clk 0:01:20.2]} 21. Nxb7 {[%clk 0:01:20.4]} 21... Bf8 {[%clk 0:01:09.2]} 22.
d6 {[%clk 0:01:12.1]} 22... Re5 {[%clk 0:01:06.2]} 23. Bf4 {[%clk 0:01:04.3]}
23... Rf5 {[%clk 0:01:05.6]} 24. Bg3 {[%clk 0:00:58.7]} 24... f6 {[%clk
0:00:51.4]} 25. Rdc1 {[%clk 0:00:51.9]} 25... Kf7 {[%clk 0:00:33.9]} 26. h3
{[%clk 0:00:50.7]} 26... Ke6 {[%clk 0:00:29.9]} 27. Re1 {[%clk 0:00:35.7]} 27...
Bc6 {[%clk 0:00:23.4]} 28. d7 {[%clk 0:00:24.9]} 28... Bxb7 {[%clk 0:00:12.8]}
29. Bxb8 {[%clk 0:00:23.4]} 1-0

[Event "*** Titled Tuesday Blitz"]
[Site "Chess.com"]
[Date "2021.04.20"]
[Round "9"]
[White "Kapibara_Warri0r"]
[Black "LittleMyMoomin"]
[Result "1-0"]
[WhiteElo "2199"]
[BlackElo "1911"]
[TimeControl "180+1"]
[EndTime "11:44:22 PDT"]
[Termination "Kapibara_Warri0r won by checkmate"]

1. e4 {[%clk 0:03:00.9]} 1... c5 {[%clk 0:02:59.1]} 2. Nf3 {[%clk 0:03:00.7]}
2... e6 {[%clk 0:02:59.6]} 3. d4 {[%clk 0:03:00.7]} 3... cxd4 {[%clk 0:03:00.5]}
4. Nxd4 {[%clk 0:03:01.5]} 4... Nc6 {[%clk 0:03:00.1]} 5. Nc3 {[%clk 0:03:00.5]}
5... Qc7 {[%clk 0:02:58.3]} 6. g3 {[%clk 0:02:59.9]} 6... a6 {[%clk 0:02:58.6]}
7. Bg2 {[%clk 0:03:00.1]} 7... Nf6 {[%clk 0:02:59.1]} 8. O-O {[%clk 0:02:58.7]}
8... Nxd4 {[%clk 0:02:58.5]} 9. Qxd4 {[%clk 0:02:58.5]} 9... Bc5 {[%clk
0:02:58.9]} 10. Bf4 {[%clk 0:02:58.8]} 10... Bxd4 {[%clk 0:02:53.7]} 11. Bxc7
{[%clk 0:02:58.5]} 11... O-O {[%clk 0:02:52.4]} 12. Bd6 {[%clk 0:02:54.9]} 12...
Re8 {[%clk 0:02:42.2]} 13. h3 {[%clk 0:02:30.9]} 13... Ra7 {[%clk 0:02:37.8]}
14. Ne2 {[%clk 0:02:19.7]} 14... Bxb2 {[%clk 0:02:35.1]} 15. Rab1 {[%clk
0:02:18.8]} 15... Nxe4 {[%clk 0:02:11.5]} 16. Bxe4 {[%clk 0:02:16.2]} 16... Bf6
{[%clk 0:02:11.2]} 17. Bc5 {[%clk 0:02:09.2]} 17... Ra8 {[%clk 0:02:10.7]} 18.
Bxb7 {[%clk 0:02:07.7]} 18... Bxb7 {[%clk 0:02:10.2]} 19. Rxb7 {[%clk
0:02:08.6]} 19... d5 {[%clk 0:02:05.3]} 20. Rfb1 {[%clk 0:01:58.7]} 20... Rec8
{[%clk 0:02:04.9]} 21. Bd4 {[%clk 0:01:37.4]} 21... Rxc2 {[%clk 0:02:02.8]} 22.
a4 {[%clk 0:01:07.8]} 22... h5 {[%clk 0:01:54.7]} 23. Bxf6 {[%clk 0:01:05.4]}
23... gxf6 {[%clk 0:01:54.4]} 24. Nf4 {[%clk 0:01:06]} 24... h4 {[%clk
0:01:49.9]} 25. gxh4 {[%clk 0:01:02]} 25... Rc4 {[%clk 0:01:47.4]} 26. Nh5
{[%clk 0:00:48.3]} 26... Rxa4 {[%clk 0:01:46.1]} 27. Nxf6+ {[%clk 0:00:47.3]}
27... Kg7 {[%clk 0:01:46.4]} 28. Ng4 {[%clk 0:00:45]} 28... Rf4 {[%clk
0:01:37.8]} 29. h5 {[%clk 0:00:43.6]} 29... a5 {[%clk 0:01:27.3]} 30. Kg2 {[%clk
0:00:27.6]} 30... a4 {[%clk 0:01:22.9]} 31. Rb8 {[%clk 0:00:23.8]} 31... Ra7
{[%clk 0:01:10.5]} 32. Rc8 {[%clk 0:00:18.8]} 32... a3 {[%clk 0:01:09.3]} 33.
Rbb8 {[%clk 0:00:18.5]} 33... f5 {[%clk 0:01:00.1]} 34. Rg8+ {[%clk 0:00:12]}
34... Kf7 {[%clk 0:01:00.3]} 35. Rh8 {[%clk 0:00:03.8]} 35... Raa4 {[%clk
0:00:38.3]} 36. Rh7# {[%clk 0:00:03.6]} 1-0

[Event "*** Titled Tuesday Blitz"]
[Site "Chess.com"]
[Date "2021.04.20"]
[Round "9"]
[White "GrigoriyM2001"]
[Black "InitiatingASC"]
[Result "0-1"]
[WhiteElo "2554"]
[BlackElo "2430"]
[TimeControl "180+1"]
[EndTime "11:44:23 PDT"]
[Termination "InitiatingASC won by resignation"]

1. d4 {[%clk 0:03:00.9]} 1... Nf6 {[%clk 0:02:58.5]} 2. c4 {[%clk 0:03:00.4]}
2... e6 {[%clk 0:02:58.1]} 3. g3 {[%clk 0:02:59.9]} 3... d5 {[%clk 0:02:57.4]}
4. Nf3 {[%clk 0:02:59.3]} 4... c5 {[%clk 0:02:57.3]} 5. cxd5 {[%clk 0:02:58.8]}
5... exd5 {[%clk 0:02:58.2]} 6. Bg2 {[%clk 0:02:59]} 6... Nc6 {[%clk 0:02:58.9]}
7. O-O {[%clk 0:02:59.4]} 7... Be7 {[%clk 0:02:59.6]} 8. Nc3 {[%clk 0:02:59.7]}
8... O-O {[%clk 0:02:59.4]} 9. b3 {[%clk 0:03:00.3]} 9... b6 {[%clk 0:02:51.2]}
10. Bb2 {[%clk 0:03:00.5]} 10... Be6 {[%clk 0:02:51.3]} 11. Rc1 {[%clk 0:03:00]}
11... Rc8 {[%clk 0:02:51.6]} 12. dxc5 {[%clk 0:02:26.4]} 12... bxc5 {[%clk
0:02:52.5]} 13. Na4 {[%clk 0:02:24.8]} 13... Qa5 {[%clk 0:02:39.5]} 14. Qd2
{[%clk 0:02:15.6]} 14... Ne4 {[%clk 0:02:24.4]} 15. Qxa5 {[%clk 0:02:13.9]}
15... Nxa5 {[%clk 0:02:25.3]} 16. Rfd1 {[%clk 0:02:12.7]} 16... Rfd8 {[%clk
0:02:22.6]} 17. Ne1 {[%clk 0:02:10.2]} 17... c4 {[%clk 0:02:17]} 18. bxc4 {[%clk
0:02:01.5]} 18... Nxc4 {[%clk 0:02:06.1]} 19. Bd4 {[%clk 0:02:00.3]} 19... Ba3
{[%clk 0:01:27]} 20. Rc2 {[%clk 0:01:49.4]} 20... a5 {[%clk 0:01:19.2]} 21. Nd3
{[%clk 0:01:43.8]} 21... Bd7 {[%clk 0:01:14.8]} 22. Nc3 {[%clk 0:01:42]} 22...
Nxc3 {[%clk 0:01:09.4]} 23. Rxc3 {[%clk 0:01:42.9]} 23... Ba4 {[%clk 0:01:09.4]}
24. Rb1 {[%clk 0:01:39.5]} 24... Bf8 {[%clk 0:01:07.5]} 25. Nf4 {[%clk
0:01:21.5]} 25... Nd2 {[%clk 0:01:02.2]} 26. Rbc1 {[%clk 0:01:19.6]} 26... Rc4
{[%clk 0:00:58]} 27. e3 {[%clk 0:01:09.4]} 27... Bb4 {[%clk 0:00:48.4]} 28. Bxd5
{[%clk 0:01:00]} 28... Bxc3 {[%clk 0:00:42.8]} 29. Bxc4 {[%clk 0:00:59.2]} 29...
Nf3+ {[%clk 0:00:43.1]} 30. Kg2 {[%clk 0:00:56.2]} 30... Ne1+ {[%clk 0:00:26.6]}
31. Kf1 {[%clk 0:00:52.1]} 31... Bxd4 {[%clk 0:00:24.9]} 32. Kxe1 {[%clk
0:00:50.4]} 32... Bb2 {[%clk 0:00:20.7]} 33. Rb1 {[%clk 0:00:49.5]} 33... Ba3
{[%clk 0:00:20.4]} 34. Rb7 {[%clk 0:00:43.5]} 34... Bc6 {[%clk 0:00:19]} 35. Rb2
{[%clk 0:00:24.1]} 35... Bxb2 {[%clk 0:00:18.7]} 36. Ke2 {[%clk 0:00:23.8]}
36... Bc3 {[%clk 0:00:18.6]} 0-1

[Event "*** Titled Tuesday Blitz"]
[Site "Chess.com"]
[Date "2021.04.20"]
[Round "9"]
[White "AEMEffi"]
[Black "FGHSMN"]
[Result "0-1"]
[WhiteElo "2337"]
[BlackElo "2486"]
[TimeControl "180+1"]
[EndTime "11:44:23 PDT"]
[Termination "FGHSMN won by resignation"]

1. d4 {[%clk 0:03:00.9]} 1... Nf6 {[%clk 0:02:57.4]} 2. c4 {[%clk 0:03:01]} 2...
e6 {[%clk 0:02:56.6]} 3. Nc3 {[%clk 0:03:01.3]} 3... d5 {[%clk 0:02:55]} 4. cxd5
{[%clk 0:02:55.5]} 4... exd5 {[%clk 0:02:54.7]} 5. Bf4 {[%clk 0:02:54.3]} 5...
Be7 {[%clk 0:02:53.4]} 6. e3 {[%clk 0:02:54.3]} 6... O-O {[%clk 0:02:52.8]} 7.
Bd3 {[%clk 0:02:54]} 7... c6 {[%clk 0:02:52.8]} 8. h3 {[%clk 0:02:51.6]} 8...
Nbd7 {[%clk 0:02:53]} 9. Qc2 {[%clk 0:02:49.9]} 9... Re8 {[%clk 0:02:52.7]} 10.
Nge2 {[%clk 0:02:49.7]} 10... h6 {[%clk 0:02:50.9]} 11. g4 {[%clk 0:02:46.6]}
11... Nf8 {[%clk 0:02:45.1]} 12. O-O-O {[%clk 0:02:36.5]} 12... Ne6 {[%clk
0:02:39.3]} 13. Be5 {[%clk 0:02:25.8]} 13... c5 {[%clk 0:02:38]} 14. dxc5 {[%clk
0:02:16.2]} 14... Nxc5 {[%clk 0:02:38.9]} 15. Bb5 {[%clk 0:02:14.2]} 15... Bd7
{[%clk 0:02:36.7]} 16. Bxf6 {[%clk 0:01:51.9]} 16... Bxf6 {[%clk 0:02:29.6]} 17.
Rxd5 {[%clk 0:01:49.9]} 17... Qe7 {[%clk 0:02:12.7]} 18. Rxc5 {[%clk 0:01:38.8]}
18... Qxc5 {[%clk 0:02:07.4]} 19. Bxd7 {[%clk 0:01:38.3]} 19... Re7 {[%clk
0:02:06.6]} 20. Bf5 {[%clk 0:01:29.2]} 20... Rc7 {[%clk 0:02:00.3]} 21. h4
{[%clk 0:01:12.7]} 21... b5 {[%clk 0:01:49.1]} 22. g5 {[%clk 0:00:39.9]} 22...
Bxc3 {[%clk 0:01:48.3]} 23. bxc3 {[%clk 0:00:39.1]} 23... b4 {[%clk 0:01:41.6]}
24. gxh6 {[%clk 0:00:35.5]} 24... g6 {[%clk 0:01:05.5]} 25. Rg1 {[%clk
0:00:27.8]} 25... Kh8 {[%clk 0:01:04.9]} 26. Be4 {[%clk 0:00:15.8]} 26... Rac8
{[%clk 0:01:01.9]} 27. Rg5 {[%clk 0:00:11.7]} 27... Qe7 {[%clk 0:00:54]} 28. Bd3
{[%clk 0:00:07.9]} 28... Rxc3 {[%clk 0:00:49]} 29. Nxc3 {[%clk 0:00:07.1]} 29...
Rxc3 {[%clk 0:00:49.9]} 30. Qxc3+ {[%clk 0:00:05.2]} 30... bxc3 {[%clk
0:00:50.8]} 31. Ra5 {[%clk 0:00:03.6]} 31... Kh7 {[%clk 0:00:43.2]} 32. a3
{[%clk 0:00:01.6]} 32... Qxh4 {[%clk 0:00:39.1]} 33. Kc2 {[%clk 0:00:01.9]}
33... Qxf2+ {[%clk 0:00:38.7]} 34. Kxc3 {[%clk 0:00:02.8]} 34... Qe1+ {[%clk
0:00:39]} 0-1

[Event "*** Titled Tuesday Blitz"]
[Site "Chess.com"]
[Date "2021.04.20"]
[Round "9"]
[White "CraiggoryC"]
[Black "JiiHart"]
[Result "0-1"]
[WhiteElo "2166"]
[BlackElo "2001"]
[TimeControl "180+1"]
[EndTime "11:44:23 PDT"]
[Termination "JiiHart won by resignation"]

1. e4 {[%clk 0:03:00.9]} 1... c5 {[%clk 0:02:59.5]} 2. Nf3 {[%clk 0:03:00.7]}
2... Nc6 {[%clk 0:02:59.6]} 3. d4 {[%clk 0:03:01.4]} 3... cxd4 {[%clk
0:02:59.6]} 4. Nxd4 {[%clk 0:03:02.3]} 4... Nf6 {[%clk 0:03:00]} 5. Nc3 {[%clk
0:03:01.5]} 5... d6 {[%clk 0:03:00]} 6. Bc4 {[%clk 0:03:00.5]} 6... e6 {[%clk
0:02:59.7]} 7. Be3 {[%clk 0:02:58.6]} 7... a6 {[%clk 0:02:58.8]} 8. Bb3 {[%clk
0:02:58.1]} 8... Qc7 {[%clk 0:02:53.1]} 9. Qe2 {[%clk 0:02:58]} 9... Bd7 {[%clk
0:02:50.5]} 10. O-O-O {[%clk 0:02:55.8]} 10... b5 {[%clk 0:02:45.2]} 11. Nxc6
{[%clk 0:02:42.4]} 11... Bxc6 {[%clk 0:02:43.6]} 12. f3 {[%clk 0:02:35.5]} 12...
Be7 {[%clk 0:02:36.7]} 13. Qf2 {[%clk 0:02:29.6]} 13... Rb8 {[%clk 0:02:32.4]}
14. g4 {[%clk 0:02:17.9]} 14... a5 {[%clk 0:02:23.9]} 15. a3 {[%clk 0:02:14.8]}
15... O-O {[%clk 0:02:16.9]} 16. Ne2 {[%clk 0:02:04.9]} 16... a4 {[%clk
0:02:13.2]} 17. Ba2 {[%clk 0:02:02.6]} 17... b4 {[%clk 0:02:13.2]} 18. axb4
{[%clk 0:02:02.1]} 18... Rxb4 {[%clk 0:02:12.2]} 19. g5 {[%clk 0:01:26]} 19...
Nd7 {[%clk 0:02:11.5]} 20. Nd4 {[%clk 0:01:21.6]} 20... Rfb8 {[%clk 0:01:54.5]}
21. c3 {[%clk 0:01:04.7]} 21... Rxb2 {[%clk 0:01:41.3]} 22. Qxb2 {[%clk
0:01:05.6]} 22... Rxb2 {[%clk 0:01:41.1]} 23. Kxb2 {[%clk 0:01:06.5]} 23... Qb7+
{[%clk 0:01:28]} 24. Kc2 {[%clk 0:01:02.4]} 24... Nc5 {[%clk 0:01:17]} 25. Rb1
{[%clk 0:00:54.5]} 25... Bxe4+ {[%clk 0:01:14.8]} 26. Kd2 {[%clk 0:00:34.9]}
26... Bxb1 {[%clk 0:01:11.8]} 27. Rxb1 {[%clk 0:00:33.9]} 27... Qc8 {[%clk
0:00:59.3]} 28. h4 {[%clk 0:00:25.4]} 28... e5 {[%clk 0:00:56]} 29. Ne2 {[%clk
0:00:13.7]} 29... g6 {[%clk 0:00:50.2]} 30. Rb5 {[%clk 0:00:10.8]} 30... Kg7
{[%clk 0:00:48.1]} 31. Bxc5 {[%clk 0:00:10.9]} 31... dxc5 {[%clk 0:00:47.5]} 32.
Ng3 {[%clk 0:00:11.5]} 32... Qc6 {[%clk 0:00:39.7]} 33. Bc4 {[%clk 0:00:08.7]}
33... Qxf3 {[%clk 0:00:39]} 34. Ne2 {[%clk 0:00:08.3]} 34... e4 {[%clk
0:00:34.9]} 35. Rb7 {[%clk 0:00:08.3]} 35... e3+ {[%clk 0:00:34]} 36. Kd3 {[%clk
0:00:07.7]} 36... Qxb7 {[%clk 0:00:32.2]} 0-1

[Event "*** Titled Tuesday Blitz"]
[Site "Chess.com"]
[Date "2021.04.20"]
[Round "9"]
[White "Kislov_Oleg"]
[Black "fabianvivasz"]
[Result "1/2-1/2"]
[WhiteElo "2494"]
[BlackElo "2355"]
[TimeControl "180+1"]
[EndTime "11:44:24 PDT"]
[Termination "Game drawn by repetition"]

1. e4 {[%clk 0:03:00.9]} 1... e5 {[%clk 0:02:59.6]} 2. Nf3 {[%clk 0:03:00.7]}
2... Nc6 {[%clk 0:02:59.3]} 3. d4 {[%clk 0:03:00.1]} 3... exd4 {[%clk
0:03:00.2]} 4. Nxd4 {[%clk 0:02:59.4]} 4... Nf6 {[%clk 0:03:00.5]} 5. Nc3 {[%clk
0:02:58.6]} 5... Bb4 {[%clk 0:03:00.2]} 6. Nxc6 {[%clk 0:02:58.6]} 6... bxc6
{[%clk 0:03:01.1]} 7. Bd3 {[%clk 0:02:59]} 7... d5 {[%clk 0:03:01.7]} 8. exd5
{[%clk 0:02:59.2]} 8... O-O {[%clk 0:03:02.1]} 9. O-O {[%clk 0:02:59.2]} 9...
Bg4 {[%clk 0:03:02.3]} 10. f3 {[%clk 0:02:59.5]} 10... Bh5 {[%clk 0:03:02.2]}
11. Bg5 {[%clk 0:02:58.2]} 11... cxd5 {[%clk 0:02:48.7]} 12. Bxf6 {[%clk
0:02:58.1]} 12... Qxf6 {[%clk 0:02:46.4]} 13. Nxd5 {[%clk 0:02:58.2]} 13... Qxb2
{[%clk 0:02:38.6]} 14. Nxb4 {[%clk 0:02:58]} 14... Qxb4 {[%clk 0:02:37.3]} 15.
Qe1 {[%clk 0:02:57.5]} 15... Qd4+ {[%clk 0:02:14.9]} 16. Qf2 {[%clk 0:02:57.1]}
16... Rad8 {[%clk 0:02:10]} 17. Qxd4 {[%clk 0:02:54.1]} 17... Rxd4 {[%clk
0:02:10.9]} 18. Rfb1 {[%clk 0:02:48.6]} 18... Bg6 {[%clk 0:01:32.6]} 19. Rb3
{[%clk 0:02:48.1]} 19... Rfd8 {[%clk 0:01:30.7]} 20. Rab1 {[%clk 0:02:21.5]}
20... c5 {[%clk 0:01:14.9]} 21. Bxg6 {[%clk 0:02:03.3]} 21... hxg6 {[%clk
0:01:14.5]} 22. Rc3 {[%clk 0:01:59]} 22... Rd2 {[%clk 0:00:44.8]} 23. Rxc5
{[%clk 0:01:45.9]} 23... Re2 {[%clk 0:00:41.2]} 24. Rc4 {[%clk 0:01:31.4]} 24...
f5 {[%clk 0:00:14.5]} 25. Kf1 {[%clk 0:00:27.3]} 25... Rdd2 {[%clk 0:00:13.7]}
26. Rc8+ {[%clk 0:00:24.6]} 26... Kf7 {[%clk 0:00:13.7]} 27. Rb7+ {[%clk
0:00:19.2]} 27... Kf6 {[%clk 0:00:14.1]} 28. Rc6+ {[%clk 0:00:15.1]} 28... Kg5
{[%clk 0:00:14.4]} 29. Rxg7 {[%clk 0:00:15.2]} 29... Rf2+ {[%clk 0:00:13.7]} 30.
Ke1 {[%clk 0:00:15.6]} 30... Rfe2+ {[%clk 0:00:13.6]} 31. Kf1 {[%clk 0:00:15.9]}
31... Rf2+ {[%clk 0:00:14]} 32. Ke1 {[%clk 0:00:15.6]} 32... Rfe2+ {[%clk
0:00:14.4]} 33. Kf1 {[%clk 0:00:15.9]} 1/2-1/2

[Event "*** Titled Tuesday Blitz"]
[Site "Chess.com"]
[Date "2021.04.20"]
[Round "9"]
[White "halldorgretar"]
[Black "maximych26"]
[Result "0-1"]
[WhiteElo "2128"]
[BlackElo "2269"]
[TimeControl "180+1"]
[EndTime "11:44:25 PDT"]
[Termination "maximych26 won on time"]

1. d4 {[%clk 0:02:09.2]} 1... Nf6 {[%clk 0:02:59.2]} 2. c4 {[%clk 0:02:06.9]}
2... c5 {[%clk 0:02:59.4]} 3. d5 {[%clk 0:02:06.5]} 3... b5 {[%clk 0:02:59.6]}
4. cxb5 {[%clk 0:02:06.5]} 4... a6 {[%clk 0:02:59.9]} 5. b6 {[%clk 0:02:06.6]}
5... Qxb6 {[%clk 0:02:59.4]} 6. Nc3 {[%clk 0:02:04.2]} 6... d6 {[%clk
0:02:59.9]} 7. e4 {[%clk 0:02:04.2]} 7... g6 {[%clk 0:03:00]} 8. a4 {[%clk
0:02:02.3]} 8... Bg7 {[%clk 0:03:00]} 9. a5 {[%clk 0:02:02.2]} 9... Qd8 {[%clk
0:03:00.5]} 10. h3 {[%clk 0:02:00.6]} 10... O-O {[%clk 0:03:01]} 11. Nf3 {[%clk
0:02:00.2]} 11... Ne8 {[%clk 0:03:01.5]} 12. Be2 {[%clk 0:01:52.1]} 12... Nc7
{[%clk 0:03:01.9]} 13. O-O {[%clk 0:01:51.7]} 13... Bd7 {[%clk 0:03:02.4]} 14.
Qb3 {[%clk 0:01:33.8]} 14... Bb5 {[%clk 0:03:02]} 15. Nxb5 {[%clk 0:01:29.8]}
15... axb5 {[%clk 0:03:02]} 16. Bxb5 {[%clk 0:01:29.1]} 16... Nxb5 {[%clk
0:03:01.8]} 17. Qxb5 {[%clk 0:01:28.6]} 17... Qd7 {[%clk 0:03:02.3]} 18. Qxd7
{[%clk 0:00:56.2]} 18... Nxd7 {[%clk 0:03:02]} 19. Nd2 {[%clk 0:00:55.7]} 19...
Rfb8 {[%clk 0:02:59.8]} 20. Nc4 {[%clk 0:00:54]} 20... Rb4 {[%clk 0:02:59.4]}
21. Ne3 {[%clk 0:00:41.4]} 21... Rxe4 {[%clk 0:02:55.4]} 22. Ra2 {[%clk
0:00:35.3]} 22... Rb4 {[%clk 0:02:53.9]} 23. f4 {[%clk 0:00:31.7]} 23... Bd4
{[%clk 0:02:48.6]} 24. Kh2 {[%clk 0:00:30.4]} 24... Ra6 {[%clk 0:02:43.1]} 25.
Nc2 {[%clk 0:00:27.8]} 25... Rb5 {[%clk 0:02:40.4]} 26. Nxd4 {[%clk 0:00:25.8]}
26... cxd4 {[%clk 0:02:40.4]} 27. Rd1 {[%clk 0:00:26]} 27... Rxd5 {[%clk
0:02:40]} 28. Bd2 {[%clk 0:00:23.8]} 28... e5 {[%clk 0:02:34.6]} 29. b4 {[%clk
0:00:21.9]} 29... e4 {[%clk 0:02:33.7]} 30. Bc3 {[%clk 0:00:19]} 30... d3 {[%clk
0:02:29.2]} 31. Re1 {[%clk 0:00:16.4]} 31... f5 {[%clk 0:02:28.8]} 32. g4 {[%clk
0:00:15.9]} 32... Kf7 {[%clk 0:02:24.5]} 33. gxf5 {[%clk 0:00:15.6]} 33... gxf5
{[%clk 0:02:24.6]} 34. Rg2 {[%clk 0:00:14.4]} 34... Nf6 {[%clk 0:02:20.5]} 35.
Rg5 {[%clk 0:00:13.8]} 35... d2 {[%clk 0:02:16.4]} 36. Rd1 {[%clk 0:00:10.9]}
36... e3 {[%clk 0:02:15.9]} 37. Rg2 {[%clk 0:00:10.6]} 37... Ra8 {[%clk
0:02:09.4]} 38. Re2 {[%clk 0:00:10.4]} 38... Rd3 {[%clk 0:02:07.4]} 39. Bxd2
{[%clk 0:00:09.4]} 39... exd2 {[%clk 0:02:05.1]} 40. Rexd2 {[%clk 0:00:08.6]}
40... Rxd2+ {[%clk 0:02:03.9]} 41. Rxd2 {[%clk 0:00:08.7]} 41... Ne4 {[%clk
0:02:04]} 42. Ra2 {[%clk 0:00:06.3]} 42... Nc3 {[%clk 0:01:56.6]} 43. Rc2 {[%clk
0:00:05.1]} 43... Nb5 {[%clk 0:01:54.2]} 44. Rc6 {[%clk 0:00:05.6]} 44... Ke6
{[%clk 0:01:51.6]} 45. Rb6 {[%clk 0:00:05.5]} 45... Nd4 {[%clk 0:01:50.6]} 46.
a6 {[%clk 0:00:05.1]} 46... Kd5 {[%clk 0:01:49.2]} 47. b5 {[%clk 0:00:05.1]}
47... Kc5 {[%clk 0:01:49.1]} 48. Rb7 {[%clk 0:00:03.3]} 48... Nxb5 {[%clk
0:01:48.3]} 49. Rxh7 {[%clk 0:00:02.5]} 49... Rxa6 {[%clk 0:01:47.9]} 50. Rf7
{[%clk 0:00:02.1]} 50... Nd4 {[%clk 0:01:47.6]} 51. h4 {[%clk 0:00:02.3]} 51...
Kd5 {[%clk 0:01:44.4]} 52. h5 {[%clk 0:00:02.4]} 52... Ra8 {[%clk 0:01:44]} 53.
h6 {[%clk 0:00:02]} 53... Ke4 {[%clk 0:01:43.5]} 54. Kh3 {[%clk 0:00:01.6]}
54... Kxf4 {[%clk 0:01:41.1]} 55. Kh4 {[%clk 0:00:02.1]} 55... Rh8 {[%clk
0:01:40.3]} 56. Kh5 {[%clk 0:00:02.4]} 56... Nc6 {[%clk 0:01:35.2]} 0-1